bitfinex/quotes_ETHUSD_20250520
["timestamp","ask_amount","ask_price","bid_price","bid_amount"]
[1747760784162,0.1,2487.9,2487.7,0.7574]
[1747760784385,0.1,2487.9,2487.8,19.329726]
[1747760784524,0.1,2487.9,2487.8,39.935726]
[1747760784928,4.11945415,2487.9,2487.8,19.329726]
[1747760785238,4.11945415,2487.9,2487.8,28.606]
[1747760786037,4.11945415,2487.9,2487.8,20.606]
[1747760786361,4.11945415,2487.9,2487.8,9.04]
[1747760786524,4.02058539,2487.2,2486.8,0.39944393]
[1747760786719,4.02076764,2487.1,2487.0,34.067061]
[1747760786952,4.02076764,2487.1,2487.0,39.307061]
[1747760788155,4.02076764,2487.1,2487.0,18.705061]
[1747760788363,4.02076764,2487.1,2487.0,28.602]
[1747760788533,4.02076764,2487.1,2487.0,34.067186]
[1747760788733,4.02076764,2487.1,2487.0,28.601]
[1747760788959,4.83326764,2487.1,2487.0,17.353]
[1747760789287,4.83326764,2487.1,2487.0,37.954]
[1747760789460,4.83326764,2487.1,2487.0,49.283726]
[1747760789461,4.02076764,2487.1,2487.0,49.283726]
[1747760789787,4.02076764,2487.1,2487.0,37.954]
[1747760789978,4.02076764,2487.1,2487.0,43.265884]
[1747760790182,4.02076764,2487.1,2487.0,37.954]
[1747760790682,4.02076764,2487.1,2487.0,38.025]
[1747760791381,4.02076764,2487.1,2487.0,49.86744439]
[1747760791587,4.02076764,2487.1,2487.0,62.00277039]
[1747760792387,4.0197773,2487.7,2487.0,62.00277039]
[1747760792575,4.02043649,2487.3,2487.1,8.0]
[1747760792882,4.02058539,2487.2,2487.1,8.0]
[1747760793066,4.02058539,2487.2,2487.1,32.823357]
[1747760793245,4.02058539,2487.2,2487.1,28.673]
[1747760793450,4.02058539,2487.2,2487.1,39.559059]
[1747760793845,4.02058539,2487.2,2487.1,18.886059]
[1747760794051,2.02139977,2490.7,2487.4,12.54685554]
[1747760794351,4.6377269,2491.6,2490.5,8.0]
[1747760794553,4.6377269,2491.6,2490.8,0.55]
[1747760794870,4.01410369,2491.3,2490.0,6.41756129]
[1747760795114,4.6377269,2491.6,2490.9,0.55]
[1747760795244,4.6377269,2491.6,2490.4,0.55]
[1747760795453,4.6377269,2491.6,2490.6,8.0]
[1747760795781,4.6377269,2491.6,2490.3,8.8007]
[1747760795991,4.6377269,2491.6,2490.3,0.8007]
[1747760795992,4.01397442,2491.3,2490.3,0.8007]
[1747760796206,4.01396861,2491.3,2490.5,8.0]
[1747760796348,4.6377269,2491.6,2490.5,8.0]
[1747760796784,4.6377269,2491.6,2490.7,8.0]
[1747760797002,4.6377269,2491.6,2490.5,9.036]
[1747760797186,4.01376703,2491.5,2490.5,14.5]
[1747760797357,4.01376703,2491.5,2490.5,9.036]
[1747760797551,4.0144859,2491.0,2490.5,9.036]
[1747760797805,4.6377269,2491.6,2490.5,9.036]
[1747760798097,4.6377269,2491.6,2490.3,0.40650307]
[1747760798098,4.01364639,2491.5,2490.6,9.036]
[1747760798395,4.01456367,2491.0,2490.6,9.41030575]
[1747760798892,0.7997,2491.6,2490.7,30.449]
[1747760799056,4.01473725,2490.9,2490.7,17.343]
[1747760799259,0.7997,2491.6,2490.7,17.343]
[1747760799260,4.01477436,2490.8,2490.7,17.343]
[1747760799752,4.01477436,2490.8,2490.7,30.449]
[1747760800779,4.01477436,2490.8,2490.7,17.343]
[1747760801180,4.01477436,2490.8,2490.7,30.446]
[1747760801893,0.7619,2492.0,2490.8,0.8089]
[1747760802070,0.7619,2492.0,2491.0,8.0]
[1747760802390,4.11811832,2491.9,2491.0,8.0]
[1747760802598,4.01417185,2491.2,2491.0,8.0]
[1747760802752,4.01399882,2491.3,2491.1,2.383502]
[1747760802955,4.01412973,2491.2,2491.1,2.383502]
[1747760803294,4.01316317,2491.8,2491.0,8.0]
[1747760803490,4.01394852,2491.4,2491.2,0.37314569]
[1747760803788,4.01396861,2491.3,2491.2,0.37314569]
[1747760803990,4.01396861,2491.3,2491.2,7.58310969]
[1747760804192,4.01390296,2491.4,2491.2,7.58310969]
[1747760804376,4.01396861,2491.3,2491.2,0.37314569]
[1747760804572,4.01396861,2491.3,2491.1,8.878518]
[1747760804778,4.01396861,2491.3,2491.1,6.170828]
[1747760805497,4.01348531,2491.6,2491.1,14.170828]
[1747760805798,4.01373962,2491.5,2491.2,0.37252573]
[1747760805971,0.105,2491.9,2491.4,8.0]
[1747760806171,4.01316317,2491.8,2491.5,13.1]
[1747760806384,4.0134141,2491.7,2491.6,17.335]
[1747760806695,4.0134141,2491.7,2491.6,30.80452573]
[1747760807877,4.0134141,2491.7,2491.6,17.70752573]
[1747760808077,4.0134141,2491.7,2491.6,30.432]
[1747760808399,4.0134141,2491.7,2491.6,30.83944706]
[1747760810616,4.8164141,2491.7,2491.6,30.83844706]
[1747760811114,4.8164141,2491.7,2491.6,30.431]
[1747760813875,4.8164141,2491.7,2491.6,30.82298538]
[1747760815487,4.8164141,2491.7,2491.6,17.335]
[1747760815677,4.8164141,2491.7,2491.6,30.43]
[1747760816013,4.8164141,2491.7,2491.6,17.335]
[1747760816323,4.01445202,2491.0,2490.9,17.8074492]
[1747760816524,4.01445202,2491.0,2490.9,41.753726]
[1747760817075,4.01445202,2491.0,2490.9,35.789716]
[1747760817304,4.01445202,2491.0,2490.9,30.424]
[1747760817513,4.01445202,2491.0,2490.9,39.449]
[1747760817708,4.01445202,2491.0,2490.9,40.30154508]
[1747760818412,4.01445202,2491.0,2490.9,48.30154508]
[1747760818613,4.01445202,2491.0,2490.9,52.82354508]
[1747760819031,4.01445202,2491.0,2490.9,52.98773852]
[1747760819329,4.01445202,2491.0,2490.9,54.16273852]
[1747760819903,4.01445202,2491.0,2490.9,48.46573852]
[1747760820227,4.01445202,2491.0,2490.9,39.82309588]
[1747760820446,3.95793202,2491.0,2490.9,17.70309588]
[1747760820732,3.95793202,2491.0,2490.9,39.82309588]
[1747760820921,4.76943202,2491.0,2490.9,17.70309588]
[1747760821096,4.76943202,2491.0,2490.9,30.79809588]
[1747760822648,4.76943202,2491.0,2490.9,28.32995989]
[1747760822805,4.76943202,2491.0,2490.9,41.42495989]
[1747760823013,4.76943202,2491.0,2490.9,28.32995989]
[1747760823207,4.76943202,2491.0,2490.9,41.42495989]
[1747760823411,4.76943202,2491.0,2490.9,28.32995989]
[1747760824032,4.76943202,2491.0,2490.9,40.79809588]
[1747760824237,4.82595202,2491.0,2490.9,40.67109588]
[1747760824406,4.82595202,2491.0,2490.9,27.70309588]
[1747760824610,4.82595202,2491.0,2490.9,10.37409588]
[1747760824611,3.38165342,2491.0,2490.9,10.37409588]
[1747760825901,3.38165342,2491.0,2490.9,11.0085306]
[1747760827554,4.14925342,2491.0,2490.9,11.0085306]
[1747760828765,4.14925342,2491.0,2490.9,10.37409588]
[1747760840572,3.38165342,2491.0,2490.9,10.37409588]
[1747760842385,3.38165342,2491.0,2490.9,23.34509588]
[1747760843181,3.38165342,2491.0,2490.9,10.0]
[1747760844996,11.38165342,2491.0,2490.9,10.0]
[1747760846756,15.62365342,2491.0,2490.9,10.0]
[1747760846971,3.38165342,2491.0,2490.9,10.0]
[1747760847658,3.38165342,2491.0,2490.9,10.3802333]
[1747760851508,3.38165342,2491.0,2490.9,23.3502333]
[1747760851715,4.18965342,2491.0,2490.9,23.3502333]
[1747760852091,4.18965342,2491.0,2490.9,10.3802333]
[1747760852396,4.18965342,2491.0,2490.9,10.0]
[1747760853609,8.36531678,2491.0,2490.9,10.0]
[1747760854014,11.33531678,2491.0,2490.9,8.96453856]
[1747760854196,15.57731678,2491.0,2490.9,8.96453856]
[1747760854374,15.57731678,2491.0,2490.9,6.83238339]
[1747760854572,15.57731678,2491.0,2490.9,6.20191161]
[1747760855475,23.57731678,2491.0,2490.9,6.20191161]
[1747760855718,23.57731678,2491.0,2489.7,0.47514794]
[1747760855719,4.01638685,2489.8,2489.7,0.47514794]
[1747760856013,4.01638685,2489.8,2489.7,13.03914794]
[1747760856723,4.01638685,2489.8,2489.7,12.564]
[1747760858698,4.01670951,2489.6,2489.5,17.332]
[1747760858893,4.01670951,2489.6,2489.5,29.898]
[1747760859832,4.01670951,2489.6,2489.5,31.09554423]
[1747760861729,4.01670951,2489.6,2489.5,40.12454423]
[1747760862104,4.01670951,2489.6,2489.5,30.27924423]
[1747760862300,4.01670951,2489.6,2489.5,29.899]
[1747760862618,4.01670951,2489.6,2489.5,42.005626]
[1747760862935,4.01670951,2489.6,2489.5,33.07763]
[1747760863080,4.01670951,2489.6,2489.5,36.95626]
[1747760863281,4.01670951,2489.6,2489.5,24.38926]
[1747760863486,4.01670951,2489.6,2489.5,39.92740993]
[1747760864341,4.01670951,2489.6,2489.5,40.08481857]
[1747760865626,4.01670951,2489.6,2489.5,55.31690745]
[1747760865821,4.01638685,2489.8,2489.7,0.7626]
[1747760866240,4.01638685,2489.8,2489.7,22.3586]
[1747760867507,4.01638685,2489.8,2489.7,41.91056799]
[1747760867707,4.01624952,2489.9,2489.8,0.7626]
[1747760867909,4.01624952,2489.9,2489.8,15.99468888]
[1747760868618,4.01624952,2489.9,2489.8,6.44585199]
[1747760869145,4.01624952,2489.9,2489.8,7.30000207]
[1747760871218,4.01624952,2489.9,2489.8,6.82577056]
[1747760873569,4.01624952,2489.9,2489.8,1.36476056]
[1747760873748,4.01624952,2489.9,2489.8,10.52081156]
[1747760874260,4.01624952,2489.9,2489.8,1.36476056]
[1747760874757,4.01624952,2489.9,2489.8,3.36886156]
[1747760875635,4.01624952,2489.9,2489.8,13.26886156]
[1747760876023,4.01624952,2489.9,2489.8,13.74292093]
[1747760877009,4.01608443,2490.0,2489.9,8.7623]
[1747760877010,4.01613357,2490.0,2489.9,8.7623]
[1747760877210,4.0159764,2490.1,2490.0,0.7623]
[1747760877754,4.0159764,2490.1,2490.0,20.31426799]
[1747760878047,4.0159764,2490.1,2490.0,21.16824593]
[1747760878234,4.01588874,2490.2,2490.0,21.16824593]
[1747760878449,4.01429352,2491.1,2490.2,0.7505]
[1747760878645,4.01509676,2490.6,2490.5,0.7505]
[1747760878814,4.01509676,2490.6,2490.5,36.647318]
[1747760879017,4.01509676,2490.6,2490.5,29.662434]
[1747760879225,4.01509676,2490.6,2490.5,30.26459456]
[1747760879678,4.01509676,2490.6,2490.5,40.27966056]
[1747760879820,4.01509676,2490.6,2490.5,44.84366056]
[1747760880863,4.01509676,2490.6,2490.5,45.23723749]
[1747760881765,4.01509676,2490.6,2490.5,23.64423749]
[1747760882058,4.01509676,2490.6,2490.5,17.93616056]
[1747760882230,4.01509676,2490.6,2490.5,39.52816056]
[1747760882435,4.01509676,2490.6,2490.5,17.71391857]
[1747760882631,4.01509676,2490.6,2490.5,49.20491857]
[1747760883763,4.01509676,2490.6,2490.5,40.17791857]
[1747760883931,4.01509676,2490.6,2490.5,49.20491857]
[1747760885347,4.82419676,2490.6,2490.5,39.92491857]
[1747760886665,4.82419676,2490.6,2490.5,39.545]
[1747760888462,4.82419676,2490.6,2490.5,27.234]
[1747760888667,4.82419676,2490.6,2490.5,39.546]
[1747760889163,4.82419676,2490.6,2490.5,27.234]
[1747760889362,4.82419676,2490.6,2490.5,39.546]
[1747760890293,4.82419676,2490.6,2490.5,9.9]
[1747760890294,5.37419676,2490.6,2490.5,9.9]
[1747760891948,5.7685798,2490.6,2490.5,9.9]
[1747760894775,8.1775798,2490.6,2490.5,9.9]
[1747760894982,20.4015798,2490.6,2490.5,9.9]
[1747760895153,31.15974718,2490.6,2490.5,8.82328203]
[1747760895359,4.01703221,2489.4,2489.3,0.47405937]
[1747760895889,4.01703221,2489.4,2489.3,12.78705937]
[1747760896094,4.01703221,2489.4,2489.3,12.313]
[1747760896275,4.01735497,2489.2,2489.1,0.1]
[1747760896449,4.84085497,2489.2,2489.1,0.1]
[1747760897597,4.84085497,2489.2,2489.1,12.415]
[1747760898446,4.01735497,2489.2,2489.1,12.415]
[1747760898693,4.01735497,2489.2,2489.1,0.1]
[1747760899000,4.01735497,2489.2,2489.1,12.415]
[1747760900325,4.01735497,2489.2,2489.1,12.417]
[1747760900498,4.01735497,2489.2,2489.1,0.1]
[1747760900699,4.01735497,2489.2,2489.1,12.417]
[1747760901149,4.84305497,2489.2,2489.1,0.1]
[1747760901663,4.84305497,2489.2,2489.1,12.417]
[1747760902380,4.84305497,2489.2,2489.1,0.1]
[1747760902560,4.84305497,2489.2,2489.1,12.417]
[1747760902943,5.25326689,2489.2,2489.1,12.417]
[1747760903181,4.84305497,2489.2,2489.1,12.417]
[1747760904382,4.01735497,2489.2,2489.1,12.417]
[1747760904774,4.01735497,2489.2,2489.1,13.2292]
[1747760905172,4.01735497,2489.2,2489.1,22.2612]
[1747760908004,4.01735497,2489.2,2489.1,22.2622]
[1747760908304,4.01735497,2489.2,2489.1,0.9122]
[1747760908903,4.01735497,2489.2,2489.1,22.2622]
[1747760909121,4.01735497,2489.2,2489.1,0.1]
[1747760909273,4.01735497,2489.2,2489.1,12.418]
[1747760909274,4.83635497,2489.2,2489.1,12.418]
[1747760910208,5.38635497,2489.2,2489.1,12.418]
[1747760910413,4.83635497,2489.2,2489.1,12.418]
[1747760913126,4.01735497,2489.2,2489.1,12.418]
[1747760916883,4.01735497,2489.2,2489.1,0.1]
[1747760917094,4.01735497,2489.2,2489.1,12.285]
[1747760917592,4.01735497,2489.2,2489.1,0.1]
[1747760917796,4.01735497,2489.2,2489.1,12.285]
[1747760919791,4.01735497,2489.2,2489.1,13.0537]
[1747760920836,4.01735497,2489.2,2489.1,13.43446214]
[1747760921735,4.01735497,2489.2,2489.1,22.46646214]
[1747760923200,4.01735497,2489.2,2489.1,33.79618814]
[1747760923436,4.01735497,2489.2,2489.1,34.01928879]
[1747760923641,4.01735497,2489.2,2489.1,36.00246967]
[1747760924706,4.01735497,2489.2,2489.1,37.00246967]
[1747760927150,4.01735497,2489.2,2489.1,37.09246967]
[1747760928350,4.01735497,2489.2,2489.1,23.77856279]
[1747760928550,4.01735497,2489.2,2489.1,3.03814353]
[1747760928718,4.01735497,2489.2,2489.1,23.48444353]
[1747760929051,4.01735497,2489.2,2489.1,22.48444353]
[1747760929655,4.01735497,2489.2,2489.1,22.26134288]
[1747760930252,4.01735497,2489.2,2489.1,12.75376214]
[1747760930625,4.01735497,2489.2,2489.1,21.78576214]
[1747760931459,4.01735497,2489.2,2489.1,21.405]
[1747760931860,4.01735497,2489.2,2489.1,12.373]
[1747760932068,4.01735497,2489.2,2488.5,0.47558074]
[1747760932069,5.72735497,2489.2,2488.5,0.47558074]
[1747760932277,8.96933991,2488.6,2488.5,0.47558074]
[1747760932431,4.79102355,2488.6,2488.5,0.47558074]
[1747760932782,4.01832355,2488.6,2488.5,12.65858074]
[1747760933122,4.01896953,2488.2,2488.0,0.8066]
[1747760933323,4.01896953,2488.2,2488.1,21.316]
[1747760933521,4.01896953,2488.2,2488.1,0.1]
[1747760933723,4.01896953,2488.2,2488.1,21.316]
[1747760934529,4.01896953,2488.2,2488.1,12.284]
[1747760935473,4.01896953,2488.2,2488.1,12.284]
[1747760936847,4.01896953,2488.2,2488.1,12.285]
[1747760937052,4.77116953,2488.2,2488.1,12.285]
[1747760941376,8.94948589,2488.2,2488.1,12.285]
[1747760941575,9.49948589,2488.2,2488.1,12.285]
[1747760942637,9.49948589,2488.2,2488.1,0.1]
[1747760943268,19.90848589,2488.2,2488.1,0.1]
[1747760943441,17.49948589,2488.2,2488.1,0.1]
[1747760943844,4.77116953,2488.2,2488.1,0.1]
[1747760944169,4.01896953,2488.2,2488.1,0.1]
[1747760944484,3.39100554,2488.2,2488.1,8.646579]
[1747760944665,4.01870483,2488.4,2488.1,13.1208839]
[1747760944873,4.01864651,2488.4,2488.3,8.0]
[1747760945061,4.01864651,2488.4,2488.3,25.777704]
[1747760945382,4.01864651,2488.4,2488.3,26.526203]
[1747760945685,4.01864651,2488.4,2488.3,27.313103]
[1747760945883,4.01864651,2488.4,2488.3,31.21546588]
[1747760946548,4.0170922,2489.4,2488.4,0.8307]
[1747760946746,4.01810362,2488.8,2488.4,0.8307]
[1747760947078,4.01816209,2488.7,2488.6,0.7535]
[1747760947267,4.01816209,2488.7,2488.6,41.623226]
[1747760947448,4.01800064,2488.8,2488.7,8.0]
[1747760947651,4.01800064,2488.8,2488.7,19.329726]
[1747760948387,4.01787211,2488.9,2488.8,0.7523]
[1747760948686,4.01753904,2489.1,2488.9,0.7523]
[1747760948979,4.01743714,2489.2,2489.1,8.8214]
[1747760949278,4.0168786,2489.5,2489.1,32.340126]
[1747760949581,4.01720493,2489.3,2489.2,23.23208888]
[1747760950080,4.01720493,2489.3,2489.2,23.60987029]
[1747760950278,4.01720493,2489.3,2489.2,23.16567429]
[1747760950493,4.0168054,2489.6,2489.3,8.0]
[1747760950667,4.01687085,2489.5,2489.4,20.081126]
[1747760950994,4.01687085,2489.5,2489.4,47.3204]
[1747760951280,4.01687085,2489.5,2489.4,58.650126]
[1747760951484,4.01678705,2489.6,2489.5,8.0]
[1747760951782,4.01678705,2489.6,2489.5,19.329726]
[1747760951980,4.01678705,2489.6,2489.5,23.23208888]
[1747760952484,0.7774,2490.8,2489.6,0.8302]
[1747760952781,4.01654817,2489.7,2489.6,0.8302]
[1747760952981,4.01654817,2489.7,2489.6,41.379926]
[1747760953169,4.01654817,2489.7,2489.6,20.159926]
[1747760953369,4.01654817,2489.7,2489.6,36.27759288]
[1747760953753,4.01654817,2489.7,2489.6,27.24459288]
[1747760953948,4.01654817,2489.7,2489.6,22.0482]
[1747760954790,4.01654817,2489.7,2489.4,17.347]
[1747760954791,4.01687085,2489.5,2489.4,17.347]
[1747760955088,4.01687085,2489.5,2489.4,38.564]
[1747760955288,4.01687085,2489.5,2489.4,17.347]
[1747760955449,4.01687085,2489.5,2489.4,38.564]
[1747760956085,4.58458732,2489.5,2489.4,17.347]
[1747760956251,4.01687085,2489.5,2489.4,29.532]
[1747760957487,4.01687085,2489.5,2489.4,35.526519]
[1747760957682,4.01687085,2489.5,2489.4,32.469861]
[1747760957884,4.01591853,2490.1,2489.4,32.469861]
[1747760957885,4.01670414,2489.7,2489.4,43.7168471]
[1747760958184,4.01670951,2489.6,2489.5,12.243737]
[1747760958352,4.01525798,2490.5,2489.6,0.7724]
[1747760958684,4.01622555,2489.9,2489.8,8.0]
[1747760958888,4.01622555,2489.9,2489.8,28.758715]
[1747760959084,4.0159961,2490.1,2489.8,32.6149265]
[1747760959271,4.01606425,2490.0,2489.9,12.161826]
[1747760959877,4.01606425,2490.0,2489.9,33.375826]
[1747760961309,4.01606425,2490.0,2489.9,22.0451]
[1747760962002,4.01606425,2490.0,2489.9,40.1111]
[1747760962202,4.01606425,2490.0,2489.9,44.01346288]
[1747760962502,4.01602008,2490.1,2490.0,8.0]
[1747760962665,0.1,2490.9,2490.1,0.8027]
[1747760962870,4.0157417,2490.2,2490.1,0.8027]
[1747760963186,4.0157417,2490.2,2490.1,15.52423229]
[1747760963360,4.0157417,2490.2,2490.1,13.38370929]
[1747760964490,4.0157417,2490.2,2490.1,9.30024929]
[1747760964989,4.0157417,2490.2,2490.1,12.182]
[1747760965152,4.01670951,2489.6,2489.5,0.8104]
[1747760965349,4.01670951,2489.6,2489.5,30.36503]
[1747760965554,4.01670951,2489.6,2489.5,29.473684]
[1747760965754,4.01670951,2489.6,2489.5,22.0214]
[1747760966002,4.01670951,2489.6,2489.5,24.289298]
[1747760966353,4.01687085,2489.5,2489.4,17.347]
[1747760966560,4.01687085,2489.5,2489.4,38.557]
[1747760966905,4.58458732,2489.5,2489.4,29.528]
[1747760967118,4.01687085,2489.5,2489.4,29.528]
[1747760967459,4.79357085,2489.5,2489.4,29.528]
[1747760968078,4.79357085,2489.5,2489.4,17.347]
[1747760968253,4.79357085,2489.5,2489.4,29.528]
[1747760971032,4.01687085,2489.5,2489.4,29.528]
[1747760972713,4.01687085,2489.5,2489.4,32.873]
[1747760973048,4.01687085,2489.5,2489.4,17.347]
[1747760973529,4.01687085,2489.5,2489.4,38.56]
[1747760973933,4.01687085,2489.5,2489.4,17.347]
[1747760974229,4.01687085,2489.5,2489.4,44.437]
[1747760974436,4.01687085,2489.5,2489.4,17.347]
[1747760974595,4.01687085,2489.5,2489.4,38.56]
[1747760974931,4.01687085,2489.5,2489.4,17.347]
[1747760975229,4.01687085,2489.5,2489.4,29.53]
[1747760980865,4.01687085,2489.5,2489.4,38.584]
[1747760982139,4.01687085,2489.5,2489.4,39.3859]
[1747760983872,4.01687085,2489.5,2489.4,51.09402575]
[1747760984289,4.01687085,2489.5,2489.4,52.09402575]
[1747760984422,4.01687085,2489.5,2489.4,44.66666263]
[1747760984621,4.01687085,2489.5,2489.4,18.94708982]
[1747760984920,4.01687085,2489.5,2489.4,17.94708982]
[1747760985247,4.01687085,2489.5,2489.4,38.96239975]
[1747760985818,4.01687085,2489.5,2489.4,17.72539975]
[1747760986023,4.01687085,2489.5,2489.4,38.96239975]
[1747760986225,4.01687085,2489.5,2489.4,38.584]
[1747760986775,4.01687085,2489.5,2489.4,29.554]
[1747760986925,4.01687085,2489.5,2489.4,38.585]
[1747760988963,4.01687085,2489.5,2489.4,17.347]
[1747760989138,4.01687085,2489.5,2489.4,29.554]
[1747760992372,4.84267085,2489.5,2489.4,29.555]
[1747760994582,4.01687085,2489.5,2489.4,29.555]
[1747760995087,4.01687085,2489.5,2489.4,29.93394463]
[1747760995444,4.01687085,2489.5,2489.4,37.07094963]
[1747760995717,4.01687085,2489.5,2489.4,46.33623601]
[1747760995875,4.01687085,2489.5,2489.4,43.01923601]
[1747760996061,4.01656211,2489.7,2489.5,8.0]
[1747760996407,4.01652343,2489.8,2489.6,0.7518]
[1747760996777,4.01652343,2489.8,2489.7,9.84544834]
[1747760997098,4.01652343,2489.8,2489.7,11.70517317]
[1747760997506,4.01652343,2489.8,2489.7,12.0841178]
[1747760997662,4.0163111,2489.9,2489.7,12.0841178]
[1747760997867,4.01638685,2489.8,2489.7,2.4606978]
[1747760998179,4.01638685,2489.8,2489.7,13.7904238]
[1747760999384,4.01638685,2489.8,2489.7,9.9761978]
[1747760999909,0.8058,2490.4,2489.7,9.9761978]
[1747761000210,4.01509676,2490.6,2489.8,9.34238619]
[1747761000385,4.0157437,2490.2,2490.0,8.0]
[1747761000591,4.015531,2490.4,2490.1,20.359726]
[1747761000789,4.01517753,2490.6,2490.2,20.138726]
[1747761001012,4.01477436,2490.8,2490.3,17.338]
[1747761001181,4.0154192,2490.4,2490.3,25.56002834]
[1747761001509,4.0154192,2490.4,2490.3,39.17597297]
[1747761001809,0.1,2490.9,2490.3,39.17597297]
[1747761001810,4.11465545,2490.9,2490.3,39.17597297]
[1747761002001,4.01535781,2490.5,2490.3,39.17597297]
[1747761002201,4.01535781,2490.5,2490.4,3.90236288]
[1747761002571,4.01535781,2490.5,2490.4,4.28130751]
[1747761003395,4.01525798,2490.5,2490.4,4.28130751]
[1747761003578,4.0151729,2490.6,2490.4,4.28130751]
[1747761003779,4.01515155,2490.6,2490.5,11.329726]
[1747761003980,4.01515155,2490.6,2490.5,15.23208888]
[1747761004599,4.01515155,2490.6,2490.5,13.82523888]
[1747761004911,4.01515155,2490.6,2490.5,9.53538251]
[1747761005312,4.01485887,2490.8,2490.5,9.53538251]
[1747761005519,4.0150004,2490.7,2490.5,4.28130751]
[1747761005813,4.0150004,2490.7,2490.6,0.81836704]
[1747761005983,4.0150004,2490.7,2490.6,1.19731167]
[1747761006186,4.0150004,2490.7,2490.6,13.28323767]
[1747761006414,4.01493556,2490.7,2490.6,13.28323767]
[1747761006805,4.01493556,2490.7,2490.6,9.01295467]
[1747761007020,4.01483477,2490.8,2490.6,9.01295467]
[1747761007317,4.11470808,2490.9,2490.7,9.29153175]
[1747761007516,4.11470808,2490.9,2490.8,20.204]
[1747761008622,0.1,2490.9,2490.8,32.342326]
[1747761009115,0.1,2490.9,2490.8,35.15266805]
[1747761009680,4.01400312,2491.3,2490.9,0.7544]
[1747761009886,4.01400312,2491.3,2491.2,0.7544]
[1747761010240,4.01396861,2491.3,2490.8,0.59377461]
[1747761010385,4.01461319,2490.9,2490.8,12.61577461]
[1747761010590,4.01461319,2490.9,2490.8,12.39640444]
[1747761010914,4.82431319,2490.9,2490.8,12.39640444]
[1747761011125,4.01461319,2490.9,2490.8,12.022]
[1747761011488,4.01525798,2490.5,2490.3,17.332]
[1747761011694,4.0154192,2490.4,2490.3,17.332]
[1747761011904,4.0154192,2490.4,2490.3,38.378]
[1747761012104,4.0154192,2490.4,2490.3,17.332]
[1747761012326,4.0154192,2490.4,2490.3,38.378]
[1747761014198,4.0154192,2490.4,2490.3,42.2158]
[1747761014410,4.0154192,2490.4,2490.3,51.072376]
[1747761014617,4.0154192,2490.4,2490.3,42.2158]
[1747761014814,4.01506355,2490.7,2490.4,8.0]
[1747761015014,4.01412973,2491.2,2490.4,8.0]
[1747761015323,0.8021,2491.3,2490.5,4.68796288]
[1747761015324,4.01492794,2490.8,2490.5,4.68796288]
[1747761015515,4.01505305,2490.7,2490.6,8.856576]
[1747761015911,0.7541,2491.5,2490.7,8.0]
[1747761016118,4.01450827,2491.0,2490.7,8.0]
[1747761016327,0.7541,2491.5,2490.8,11.761276]
[1747761016634,4.01461319,2490.9,2490.8,10.9047]
[1747761016805,4.01461319,2490.9,2490.8,19.761276]
[1747761017006,4.01434572,2491.1,2490.8,19.761276]
[1747761017221,4.01461319,2490.9,2490.8,10.9047]
[1747761017416,4.01461319,2490.9,2490.8,19.761276]
[1747761017826,4.01412601,2491.3,2490.9,8.8005]
[1747761018028,4.01429087,2491.1,2491.0,2.8561776]
[1747761018335,4.01493556,2490.7,2490.6,8.8005]
[1747761018541,4.01484474,2490.8,2490.6,38.703076]
[1747761018739,4.01484474,2490.8,2490.7,16.856576]
[1747761019328,0.7998,2491.5,2490.7,14.475313]
[1747761019522,4.01477436,2490.8,2490.7,8.0]
[1747761019730,4.01477436,2490.8,2490.7,20.23146229]
[1747761020037,4.01464852,2490.9,2490.7,20.23146229]
[1747761020241,0.005,2491.6,2490.9,0.8225]
[1747761020442,4.01374264,2491.5,2491.1,8.0]
[1747761020673,0.005,2491.6,2491.3,8.8175]
[1747761020848,4.01366697,2491.5,2491.4,18.91011788]
[1747761021162,0.005,2491.6,2491.5,20.42502847]
[1747761021645,0.005,2493.0,2491.6,8.0]
[1747761021846,4.01188165,2492.6,2492.1,0.7589]
[1747761022049,4.01219707,2492.4,2492.3,8.0]
[1747761022223,4.01183788,2492.7,2492.3,40.381986]
[1747761022428,4.01183788,2492.7,2492.5,0.7549]
[1747761022751,4.01183788,2492.7,2492.6,8.124488]
[1747761023055,4.01235806,2492.3,2492.2,17.329]
[1747761023215,4.01235806,2492.3,2492.2,29.346]
[1747761023419,4.01235806,2492.3,2492.2,17.329]
[1747761023623,4.01380749,2491.4,2491.3,0.46842129]
[1747761023858,4.01380749,2491.4,2491.3,17.79442129]
[1747761024023,4.01380749,2491.4,2491.3,29.81142129]
[1747761024843,0.8292,2491.9,2491.3,38.53465511]
[1747761025162,4.01338938,2491.7,2491.4,4.23742854]
[1747761025463,4.01325689,2491.8,2491.5,13.07358222]
[1747761025761,4.01297304,2492.0,2491.7,0.815]
[1747761025922,4.01300212,2491.9,2491.8,17.18064]
[1747761026122,4.01291994,2492.0,2491.8,20.873576]
[1747761026326,4.01259064,2492.2,2491.9,11.05893613]
[1747761026566,0.005,2492.8,2492.0,8.856576]
[1747761026724,0.005,2492.8,2492.0,0.7548]
[1747761026919,4.0117142,2492.7,2492.0,0.7548]
[1747761027123,4.01246253,2492.3,2492.1,0.37532231]
[1747761027450,4.01246253,2492.3,2492.2,26.181576]
[1747761027619,4.01222957,2492.4,2492.2,26.181576]
[1747761027824,4.01222957,2492.4,2492.3,20.873576]
[1747761028241,4.01222957,2492.4,2492.3,28.629955]
[1747761028859,4.01235806,2492.3,2492.2,26.348]
[1747761029037,0.005,2492.8,2492.2,47.221576]
[1747761029038,4.0117142,2492.7,2492.2,47.221576]
[1747761029232,4.01235806,2492.3,2492.2,38.365]
[1747761029422,4.01235806,2492.3,2492.2,47.221576]
[1747761029623,0.005,2492.8,2492.2,45.5616424]
[1747761029845,4.01235806,2492.3,2492.2,21.6022004]
[1747761030056,4.01235806,2492.3,2492.2,47.59341352]
[1747761030249,0.005,2492.8,2492.2,47.59341352]
[1747761030519,0.005,2492.8,2492.2,38.73683752]
[1747761030727,0.005,2492.8,2492.6,2.80823262]
[1747761031033,0.005,2492.8,2492.7,29.701176]
[1747761031227,0.005,2492.8,2492.7,19.1260106]
[1747761031426,4.01655327,2492.8,2492.7,24.074293]
[1747761031732,4.01655327,2492.8,2492.7,21.037]
[1747761031934,0.005,2492.8,2492.7,27.4431]
[1747761032134,4.01655327,2492.8,2492.7,25.843188]